bitfinex-derivatives/quotes_ETHF0:USTF0_20260131
["timestamp","ask_amount","ask_price","bid_price","bid_amount"]
[1769864281339,0.00486317,2635.0,2633.1,2.57144935]
[1769864281541,0.00486317,2635.0,2633.2,0.34444935]
[1769864281837,0.00486317,2635.0,2633.3,0.15427935]
[1769864282234,0.14843434,2635.0,2633.3,0.15427935]
[1769864282841,2.26414028,2635.7,2634.0,0.15427935]
[1769864283038,0.14357117,2636.0,2634.2,0.15427935]
[1769864283945,0.14649322,2636.0,2634.2,0.15427935]
[1769864284440,0.14357117,2635.7,2634.2,0.15427935]
[1769864284944,0.14357117,2635.6,2634.2,0.15427935]
[1769864285340,0.14357117,2635.9,2634.2,0.15427935]
[1769864285542,0.14357117,2635.7,2634.2,0.15427935]
[1769864287042,0.14968058,2635.6,2634.2,0.15427935]
[1769864288540,0.15260263,2636.0,2634.2,0.15427935]
[1769864288740,4.37340389,2635.9,2634.2,0.15427935]
[1769864289046,3.41588614,2636.0,2634.2,0.15427935]
[1769864289241,4.37372727,2635.9,2634.2,0.15427935]
[1769864289442,3.41588614,2636.0,2634.2,0.15427935]
[1769864289742,4.37348931,2635.9,2634.2,0.15427935]
[1769864289945,0.14968058,2635.9,2634.2,0.15427935]
[1769864292655,2.26426179,2634.3,2633.3,0.14724479]
[1769864292950,0.14968058,2634.4,2633.0,0.33735479]
[1769864293145,0.14968058,2634.0,2633.0,0.33735479]
[1769864293347,0.15351842,2634.0,2633.0,0.33735479]
[1769864293552,2.26426179,2633.8,2633.0,0.33735479]
[1769864294053,2.26426179,2633.7,2633.0,0.33735479]
[1769864294347,2.26426179,2633.8,2633.1,0.19011]
[1769864294759,2.26426179,2633.7,2633.1,0.19011]
[1769864294943,2.26426179,2633.8,2633.1,0.19011]
[1769864295349,2.26426179,2633.7,2633.1,0.19011]
[1769864295556,2.26426179,2633.8,2633.1,0.19011]
[1769864296056,2.26426179,2633.7,2633.1,0.19011]
[1769864296355,2.26426179,2633.8,2633.1,0.19011]
[1769864296747,2.26426179,2633.7,2633.1,0.19011]
[1769864297057,2.26426179,2633.6,2632.9,0.0041669]
[1769864297258,2.26426179,2633.7,2633.0,0.19011]
[1769864297454,2.26426179,2633.6,2633.0,0.19011]
[1769864297859,2.26426179,2633.5,2633.0,0.33735479]
[1769864298057,2.26426179,2633.6,2633.0,0.33735479]
[1769864298554,2.26426179,2633.5,2633.0,0.33735479]
[1769864298861,2.26426179,2633.6,2633.0,0.33735479]
[1769864299359,2.26426179,2633.5,2633.0,0.33735479]
[1769864299552,2.26426179,2633.6,2633.0,0.33735479]
[1769864299953,2.26426179,2633.5,2633.0,0.33735479]
[1769864300246,2.26426179,2633.6,2633.0,0.33735479]
[1769864300651,2.26426179,2633.5,2633.0,0.33735479]
[1769864300851,2.26426179,2633.6,2633.0,0.33735479]
[1769864301460,2.26426179,2633.5,2633.0,0.33735479]
[1769864301659,2.26426179,2633.6,2633.0,0.33735479]
[1769864302162,2.26426179,2633.5,2633.0,0.33735479]
[1769864302463,2.26426179,2633.7,2633.1,0.14724479]
[1769864302759,2.26426179,2633.8,2633.1,0.33735479]
[1769864302955,2.26426179,2633.7,2633.1,0.33735479]
[1769864303357,2.26426179,2633.6,2633.1,0.33735479]
[1769864303556,2.26426179,2633.7,2633.2,0.14724479]
[1769864303957,2.26426179,2633.5,2633.2,0.14724479]
[1769864304163,2.26426179,2633.7,2633.2,0.14724479]
[1769864304567,2.26426179,2633.6,2633.1,0.19011]
[1769864304765,2.41394237,2633.6,2632.9,0.15141169]
[1769864305065,2.26426179,2633.5,2632.9,0.15141169]
[1769864306372,2.26426179,2633.4,2632.9,0.15141169]
[1769864306664,2.26426179,2633.6,2632.9,0.15141169]
[1769864306963,2.26426179,2633.8,2632.9,0.15141169]
[1769864307364,2.26426179,2633.7,2632.9,0.15141169]
[1769864307666,2.26426179,2633.6,2632.9,0.15141169]
[1769864307868,2.26426179,2633.7,2632.9,0.15141169]
[1769864308364,2.26426179,2633.6,2632.9,0.15141169]
[1769864308566,2.26426179,2633.7,2632.9,0.15141169]
[1769864309465,0.00383784,2634.0,2633.0,0.14724479]
[1769864313263,0.00383784,2634.0,2633.0,0.33742479]
[1769864313466,3.26328351,2634.3,2633.1,0.14724479]
[1769864313663,0.14968058,2634.6,2633.1,0.14724479]
[1769864313863,0.14968058,2634.2,2633.1,0.14724479]
[1769864314271,2.26426179,2634.1,2633.1,0.14724479]
[1769864314464,2.26830586,2634.1,2633.1,0.14724479]
[1769864314770,0.00404407,2634.1,2633.1,0.14724479]
[1769864317559,2.26830586,2634.1,2633.1,0.14724479]
[1769864318164,2.26426179,2634.0,2633.1,0.14724479]
[1769864318567,2.26426179,2633.9,2633.1,0.14724479]
[1769864318766,2.26426179,2634.0,2633.1,0.14724479]
[1769864319268,2.26426179,2633.9,2633.1,0.14724479]
[1769864319670,2.26426179,2633.8,2633.1,0.14724479]
[1769864319859,2.26426179,2633.9,2633.1,0.14724479]
[1769864320271,2.26426179,2633.8,2633.1,0.14724479]
[1769864320573,2.26426179,2633.9,2633.1,0.14724479]
[1769864321061,2.26426179,2633.8,2633.1,0.14724479]
[1769864321263,2.26426179,2633.9,2633.1,0.14724479]
[1769864321665,2.26426179,2633.8,2633.1,0.14724479]
[1769864321869,2.26426179,2633.9,2633.1,0.14724479]
[1769864322276,2.26426179,2633.8,2633.1,0.14724479]
[1769864322576,2.26426179,2633.9,2633.1,0.14724479]
[1769864323176,0.00404407,2634.1,2633.1,0.14724479]
[1769864323177,2.26426179,2633.8,2633.1,0.14724479]
[1769864323373,2.26426179,2633.9,2633.1,0.14724479]
[1769864323775,2.26426179,2633.8,2633.1,0.14724479]
[1769864324075,2.26426179,2633.9,2633.1,0.14724479]
[1769864324475,2.26426179,2633.8,2633.1,0.14724479]
[1769864324676,2.26426179,2633.9,2633.1,0.14724479]
[1769864325177,0.00404407,2634.1,2633.1,0.14724479]
[1769864325378,2.26426179,2633.8,2633.1,0.14724479]
[1769864326779,2.26426179,2633.7,2633.1,0.14724479]
[1769864327078,2.26426179,2633.8,2633.1,0.14724479]
[1769864327378,0.00404407,2634.1,2633.1,0.14724479]
[1769864327583,2.26426179,2633.8,2633.1,0.14724479]
[1769864327982,2.26426179,2633.7,2633.1,0.14724479]
[1769864328181,2.26426179,2633.8,2633.1,0.14724479]
[1769864328676,2.26426179,2633.7,2633.1,0.14724479]
[1769864328879,2.26426179,2633.8,2633.1,0.14724479]
[1769864329274,2.26426179,2633.7,2633.1,0.19018]
[1769864329482,2.26426179,2633.8,2633.2,0.14466368]
[1769864329882,0.87809963,2633.7,2633.2,0.14466368]
[1769864330384,0.26016694,2633.8,2633.2,0.14466368]
[1769864330583,0.26016694,2633.7,2633.2,0.14466368]
[1769864331483,0.26016694,2633.5,2633.2,0.14466368]
[1769864331784,0.26016694,2633.7,2633.2,0.14466368]
[1769864332190,0.26016694,2633.5,2633.2,0.14466368]
[1769864332382,0.00404407,2634.1,2633.2,0.14466368]
[1769864333189,0.00404407,2634.1,2633.2,0.33483368]
[1769864333392,0.00404407,2634.1,2633.3,0.14466368]
[1769864334277,0.14717131,2634.8,2633.3,0.14466368]
[1769864335293,0.00384983,2634.8,2633.9,0.14466368]
[1769864336291,0.15102114,2634.8,2633.9,0.14466368]
[1769864340889,0.00384983,2634.8,2633.9,0.14466368]
[1769864343199,0.15102114,2634.8,2633.9,0.14466368]
[1769864350504,0.15102114,2634.8,2633.8,0.19013]
[1769864350698,0.15102114,2634.8,2633.7,2.229]
[1769864351005,0.15102114,2634.8,2633.7,2.37330694]
[1769864351894,0.15102114,2634.8,2633.8,0.14430694]
[1769864351895,0.00384983,2634.8,2633.8,0.14430694]
[1769864352098,0.14945268,2635.4,2634.0,0.14430694]
[1769864352404,0.14945268,2635.4,2634.4,0.14430694]
[1769864352604,0.00675214,2635.5,2634.4,0.14430694]
[1769864353008,0.01117566,2635.5,2634.4,0.14430694]
[1769864353206,0.16062834,2635.5,2634.4,0.14430694]
[1769864354205,0.01117566,2635.5,2634.4,0.14430694]
[1769864358311,0.16062834,2635.5,2634.4,0.14430694]
[1769864361311,3.42391185,2635.5,2634.4,0.14430694]
[1769864362512,0.14945268,2635.4,2634.4,0.14430694]
[1769864365109,0.14945268,2635.4,2634.5,0.14430694]
[1769864367914,3.27445917,2635.5,2634.5,0.14430694]
[1769864368510,0.14945268,2635.4,2634.5,0.14430694]
[1769864369318,0.14945268,2635.4,2634.6,0.14430694]
[1769864369721,3.27445917,2635.5,2634.6,0.14430694]
[1769864370217,3.42391185,2635.5,2634.6,0.14430694]
[1769864371218,3.42391185,2635.5,2634.4,0.1]
[1769864371219,0.01117566,2635.5,2634.8,0.33436694]
[1769864371522,0.16062834,2635.5,2634.9,0.19005]
[1769864371915,0.16062834,2635.5,2634.8,0.00346918]
[1769864373021,0.01117566,2635.5,2634.8,0.14777612]
[1769864381427,0.01117566,2635.5,2634.1,4.10078125]
[1769864381428,1.16649775,2634.9,2631.5,11.36095353]
[1769864381718,0.14757935,2631.5,2629.0,40.29635254]
[1769864381912,0.14757935,2631.4,2628.8,0.27649775]
[1769864382117,0.14757935,2631.4,2629.2,38.75745791]
[1769864382310,2.27804437,2630.3,2629.2,0.00482248]
[1769864382513,34.17150183,2630.5,2629.2,0.00482248]
[1769864382514,7.98879358,2630.2,2629.3,39.98252098]
[1769864382710,34.17150183,2630.4,2629.3,39.98252098]
[1769864382711,7.98879358,2630.1,2629.3,39.98252098]
[1769864382912,2.27804437,2629.9,2629.3,78.67381045]
[1769864383127,5.71074921,2629.8,2629.3,78.67381045]
[1769864383316,2.27804437,2630.1,2629.4,38.75745791]
[1769864383620,7.99102162,2630.0,2629.3,39.91635254]
[1769864383820,5.71297725,2629.9,2629.3,39.91635254]
[1769864384022,5.71297725,2629.8,2629.4,0.15567265]
[1769864384224,2.27804437,2630.1,2629.4,0.15567265]
[1769864384426,5.71301226,2630.0,2629.4,40.07202519]
[1769864384724,5.71301226,2629.9,2629.4,40.07202519]
[1769864384924,2.27804437,2630.3,2629.6,0.15567265]
[1769864385224,2.27804437,2630.3,2629.3,0.15567265]
[1769864385225,5.71226937,2630.2,2629.3,0.15567265]
[1769864385423,5.71226937,2630.1,2629.3,40.07202519]
[1769864385721,5.71226937,2630.0,2629.3,40.07202519]
[1769864385923,2.37316884,2630.3,2629.3,40.07202519]
[1769864386120,7.94697622,2630.2,2629.3,40.07202519]
[1769864386423,0.15716071,2630.7,2629.9,38.75745791]
[1769864386718,0.15716071,2630.7,2629.4,40.98645791]
[1769864386925,0.15716071,2630.7,2629.6,38.75745791]
[1769864387220,2.38739683,2630.6,2629.6,38.75745791]
[1769864387524,0.15637682,2630.6,2629.7,39.91635254]
[1769864387724,0.15637682,2630.6,2629.7,38.75745791]
[1769864388023,0.15637682,2630.6,2629.8,38.75745791]
[1769864388227,0.15637682,2630.5,2629.7,38.75745791]
[1769864388723,0.15637682,2630.5,2629.9,38.75745791]
[1769864388924,0.15637682,2630.5,2630.0,38.75745791]
[1769864389120,0.15637682,2630.5,2629.7,38.75745791]
[1769864389321,0.15637682,2630.5,2629.8,38.75745791]
[1769864389718,0.15637682,2630.5,2629.9,38.75745791]
[1769864389915,2.23102001,2630.9,2630.0,2.237]
[1769864390121,0.15704192,2631.3,2630.0,40.99445791]
[1769864390314,0.15704192,2631.3,2630.2,38.75745791]
[1769864390821,0.15704192,2631.3,2630.3,76.44279044]
[1769864391022,0.15704192,2631.3,2630.3,38.75745791]
[1769864391223,0.15704192,2631.3,2630.6,38.75745791]
[1769864391424,0.15704192,2631.3,2630.2,0.00127721]
[1769864391425,0.15704192,2631.3,2630.7,41.01345791]
[1769864391629,25.63643813,2631.8,2630.7,2.256]
[1769864391816,6.83419548,2632.8,2630.7,2.256]
[1769864391817,0.15716071,2633.2,2631.9,27.54531791]
[1769864392119,0.15716071,2633.2,2632.0,2.23]
[1769864392325,12.15716071,2633.1,2632.1,27.35505791]
[1769864392523,0.15716071,2633.1,2632.3,27.35505791]
[1769864392726,0.16155944,2633.1,2632.3,0.00414472]
[1769864392930,0.16155944,2633.1,2632.3,27.35920263]
[1769864393323,12.0,2633.0,2632.4,27.35505791]
[1769864393622,12.0,2633.0,2632.5,2.281]
[1769864393822,12.0,2633.0,2632.5,29.63605791]
[1769864394023,12.0,2633.0,2632.6,27.35505791]
[1769864394224,0.15639016,2632.9,2632.5,2.281]
[1769864394433,0.15639016,2632.9,2632.5,0.891]
[1769864394618,0.15639016,2633.6,2632.5,0.891]
[1769864395229,0.1570484,2633.4,2632.5,0.891]
[1769864395629,12.0,2633.3,2632.6,27.35505791]
[1769864396028,12.0,2633.3,2632.7,27.35505791]
[1769864396636,12.1570484,2633.3,2632.8,27.35505791]
[1769864396840,12.1570484,2633.3,2632.7,27.35505791]
[1769864397735,12.1570484,2633.3,2632.8,27.35505791]
[1769864397936,12.1570484,2633.3,2632.7,27.35505791]
[1769864398535,12.1570484,2633.3,2632.8,27.35505791]
[1769864398833,0.15811426,2633.2,2632.9,2.316]
[1769864399334,0.15811426,2633.2,2632.9,29.67105791]
[1769864400233,0.15811426,2633.2,2633.0,27.35505791]
[1769864401234,0.00297544,2633.4,2633.0,27.35505791]
[1769864401439,0.1580643,2634.1,2633.3,27.35208247]
[1769864401631,0.1580643,2634.1,2633.4,2.346]
[1769864401826,0.1580643,2633.9,2633.4,2.346]
[1769864402529,0.16248835,2633.9,2633.4,2.346]
[1769864402729,0.1580643,2633.7,2633.4,2.346]
[1769864402930,0.1580643,2633.7,2633.0,2.229]
[1769864403231,0.15741596,2633.5,2632.8,27.35208247]
[1769864403435,9.654,2633.8,2633.2,27.35208247]
[1769864403633,9.654,2633.8,2633.2,2.349]
[1769864403934,9.81141596,2633.8,2633.4,27.35208247]
[1769864404136,0.15741596,2633.7,2633.4,27.35208247]
[1769864404337,0.15741596,2633.7,2633.5,27.35208247]
[1769864404824,0.15741596,2633.7,2633.6,27.35208247]
[1769864405029,0.15741596,2633.7,2633.5,27.35208247]
[1769864405633,0.15741596,2633.7,2633.6,27.35208247]
[1769864405634,9.81141596,2633.7,2633.6,27.35208247]
[1769864405936,0.15741596,2633.7,2633.5,27.35208247]
[1769864406233,9.81141596,2633.7,2633.5,27.35208247]
[1769864406439,9.81141596,2633.7,2633.6,27.35208247]
[1769864406637,9.81141596,2633.7,2633.5,27.35208247]
[1769864407030,9.81141596,2633.7,2633.6,27.35208247]
[1769864407231,0.15741596,2633.7,2633.5,27.35208247]
[1769864407636,9.81141596,2633.7,2633.6,27.35208247]
[1769864407839,0.15741596,2633.7,2633.5,27.35208247]
[1769864408333,9.81141596,2633.7,2633.6,27.35208247]
[1769864408533,0.15741596,2633.7,2633.5,27.35208247]
[1769864408734,9.81141596,2633.7,2633.5,27.35208247]
[1769864409043,9.81141596,2633.7,2633.6,27.35208247]
[1769864409235,0.15741596,2633.7,2633.2,2.349]
[1769864409538,0.16001899,2633.5,2633.2,29.70108247]
[1769864409725,0.16001899,2633.5,2633.2,2.349]
[1769864409932,9.81401899,2633.5,2633.4,27.35208247]
[1769864410535,9.654,2633.9,2633.7,27.18763943]
[1769864410738,3.88,2634.4,2633.5,17.53363943]
[1769864410938,5.60702502,2634.3,2633.3,17.53363943]
[1769864411139,5.60702502,2634.2,2633.3,0.14338875]
[1769864411443,5.60702502,2634.1,2633.3,0.14338875]
[1769864411744,5.60702502,2634.0,2633.3,0.14338875]
[1769864411927,5.60702502,2634.0,2633.5,17.53363943]
[1769864412127,0.00452495,2634.1,2633.8,17.53363943]
[1769864412338,0.00452495,2634.1,2633.6,17.53363943]
[1769864412534,0.00452495,2634.1,2633.6,19.95863943]
[1769864412741,0.00452495,2634.1,2633.8,17.53363943]
[1769864413132,5.61750748,2634.0,2633.9,17.53363943]
[1769864413337,5.61750748,2634.0,2633.8,17.53363943]
[1769864413537,0.00452495,2634.1,2633.9,17.53363943]
[1769864413738,5.6175078,2634.0,2633.8,17.53363943]
[1769864414040,0.00452495,2634.1,2633.8,17.53363943]
[1769864414241,5.61771316,2634.0,2633.9,17.53363943]
[1769864414434,5.61771316,2634.0,2633.8,17.53363943]
[1769864414639,0.00452495,2634.1,2633.9,17.53363943]
[1769864414843,5.62324616,2634.0,2633.9,17.53363943]
[1769864415142,5.62324616,2634.0,2633.6,2.56838875]
[1769864415339,5.62324616,2633.9,2633.6,2.56838875]
[1769864415540,0.00452495,2634.1,2633.9,17.53363943]
[1769864415838,5.62949287,2634.0,2633.9,17.53363943]
[1769864416040,5.62949287,2634.0,2633.6,2.56838875]
[1769864416344,5.62949287,2633.9,2633.6,2.56838875]
[1769864416540,5.62949287,2633.8,2633.6,2.56838875]
[1769864416843,0.00452495,2634.1,2633.9,17.53363943]
[1769864417039,5.63763202,2634.0,2633.8,12.78068681]
[1769864417242,0.00452495,2634.1,2633.9,12.78068681]
[1769864417543,5.45705447,2634.0,2633.9,12.78068681]
[1769864417747,0.14618406,2631.9,2630.7,0.00675981]
[1769864417950,0.14618406,2631.6,2630.7,0.00675981]
[1769864418242,5.63765303,2631.9,2630.8,12.92407556]
[1769864418243,5.45705447,2631.5,2630.8,12.92407556]
[1769864418437,5.45705447,2631.4,2630.9,0.14338875]
[1769864418637,0.00414755,2631.4,2631.0,0.14338875]
[1769864418840,0.00414755,2631.4,2631.2,12.78068681]
[1769864419044,0.00414755,2631.4,2631.3,12.78068681]
[1769864419242,5.37853939,2631.4,2631.2,12.78068681]
[1769864419540,0.14618406,2632.0,2631.2,12.78068681]
[1769864419740,4.916,2632.7,2631.5,4.57809339]
[1769864419940,10.55365303,2632.7,2631.0,2.477]
[1769864420253,5.63765303,2632.6,2630.9,0.00441067]
[1769864420440,10.55645614,2632.7,2630.9,0.00441067]
[1769864420641,4.91880311,2632.7,2630.9,0.00441067]
[1769864421847,0.14618406,2632.1,2630.9,0.00441067]
[1769864422248,0.14618406,2632.0,2631.2,4.57809339]
[1769864422441,0.14618406,2632.0,2630.9,0.00441067]
[1769864422745,0.14618406,2632.0,2631.4,4.57809339]
[1769864423145,0.14618406,2632.0,2631.6,4.57809339]
[1769864423344,0.14618406,2632.0,2631.4,4.57809339]
[1769864423750,0.14618406,2632.0,2631.6,4.57809339]
[1769864423947,0.14618406,2632.0,2631.4,4.57809339]
[1769864424442,0.14618406,2632.0,2631.6,4.57809339]
[1769864424648,0.14618406,2632.0,2631.4,4.57809339]
[1769864425136,0.14618406,2632.0,2631.7,4.57809339]
[1769864425340,0.14618406,2632.3,2631.1,0.14338875]
[1769864425540,0.14618406,2632.3,2631.4,4.57809339]
[1769864425744,0.14618406,2632.3,2631.6,4.57809339]
[1769864425949,0.14618406,2632.3,2631.3,0.14338875]
[1769864426152,0.14618406,2632.3,2631.8,4.57809339]
[1769864426648,0.14618406,2632.3,2631.8,4.26384263]
[1769864427251,33.91120989,2632.7,2631.8,4.26384263]
[1769864427451,0.14618406,2632.6,2631.3,0.14338875]
[1769864427749,0.14618406,2632.6,2631.5,0.14338875]
[1769864428147,34.05459084,2632.6,2631.6,4.26384263]
[1769864428348,0.14618406,2632.5,2631.6,4.26384263]
[1769864428754,0.14618406,2632.5,2631.7,4.26384263]
[1769864428951,0.14618406,2632.5,2631.6,4.26384263]
[1769864429254,0.14618406,2632.4,2631.5,4.40723138]
[1769864429751,0.14618406,2632.4,2631.6,4.26384263]
[1769864429949,33.90840678,2632.4,2631.7,4.26384263]
[1769864430149,33.90840678,2632.6,2631.7,4.26384263]
[1769864430349,39.90540678,2632.6,2631.7,4.26384263]
[1769864430861,40.05159084,2632.6,2631.7,4.26384263]
[1769864431155,40.05159084,2632.6,2631.8,4.26384263]
[1769864431362,34.05459084,2632.6,2631.7,4.26384263]
[1769864431547,6.015,2632.5,2631.7,4.40723138]
[1769864431747,5.15319618,2632.4,2631.8,4.26384263]
[1769864432047,5.15319618,2632.4,2631.7,0.14338875]
[1769864432048,5.15319618,2632.3,2631.7,0.14338875]
[1769864432263,5.15319618,2632.2,2631.9,4.26384263]
[1769864432458,39.92840678,2632.5,2631.9,4.26384263]
[1769864432658,5.15327253,2632.4,2631.9,2.87384263]
[1769864432962,5.15327253,2632.3,2632.1,2.87384263]
[1769864433147,5.15327253,2632.2,2632.0,1.50091014]
[1769864433347,40.08359084,2632.5,2632.0,1.50091014]
[1769864433647,5.15298344,2632.4,2632.1,1.50091014]
[1769864433849,40.08359084,2632.5,2631.7,0.14338875]
[1769864433850,5.15298344,2632.3,2632.0,1.50091014]
[1769864434153,5.15298344,2632.2,2632.0,1.50091014]
[1769864434457,40.08359084,2632.5,2632.1,1.50091014]
[1769864434658,5.15322788,2632.4,2632.0,1.50091014]
[1769864434859,5.15322788,2632.3,2631.6,0.15712537]
[1769864435062,5.15322788,2632.2,2631.6,0.15712537]
[1769864435251,39.93740678,2632.5,2631.6,0.15712537]
[1769864435450,5.15370235,2632.4,2631.6,0.15712537]
[1769864435759,5.15370235,2632.3,2631.6,0.15712537]
[1769864435955,39.93740678,2632.5,2631.6,0.15712537]
[1769864435956,3.88,2632.4,2631.6,0.15712537]
[1769864440361,3.88280311,2632.7,2631.6,0.15712537]
[1769864441975,3.88280311,2632.7,2631.7,0.15451083]
[1769864442459,3.88806449,2632.7,2631.7,0.15451083]
[1769864443162,5.16560804,2632.6,2631.7,0.15451083]
[1769864443365,3.88806449,2632.7,2631.7,0.15451083]
[1769864443662,5.1695092,2632.6,2631.7,0.15451083]
[1769864443861,3.88806449,2632.7,2631.7,0.15451083]
[1769864444056,5.1695094,2632.6,2631.7,0.15451083]
[1769864444256,5.1695094,2632.5,2631.7,0.15451083]
[1769864444457,3.88806449,2632.7,2631.7,0.15451083]
[1769864444666,5.17412421,2632.6,2631.7,0.15451083]
[1769864444963,5.17412421,2632.5,2631.7,0.15451083]
[1769864445264,3.88806449,2632.7,2631.7,0.15451083]
[1769864445463,5.17971491,2632.6,2631.7,0.15451083]
[1769864445656,5.17971491,2632.5,2631.7,0.15451083]
[1769864445856,3.88806449,2632.7,2631.7,0.15451083]
[1769864446063,5.17970516,2632.6,2631.7,0.15451083]
[1769864446362,5.17970516,2632.5,2631.7,0.15451083]
[1769864446662,5.17970516,2632.4,2631.7,0.15451083]
[1769864446863,3.88806449,2632.7,2631.7,0.15451083]
[1769864447163,5.18688185,2632.6,2631.7,0.15451083]
[1769864447355,5.18688185,2632.5,2631.7,0.15451083]
[1769864447556,5.18688185,2632.4,2631.7,0.15451083]
[1769864447756,5.18688185,2632.3,2631.7,0.15451083]
[1769864447954,0.00655563,2632.6,2631.4,0.1538637]
[1769864448149,5.14944255,2632.5,2631.4,0.1538637]
[1769864448363,5.14944255,2632.4,2631.4,0.1538637]
[1769864448562,5.14944255,2632.3,2631.4,0.1538637]
[1769864448762,5.14944255,2632.2,2631.4,0.1538637]
[1769864449060,5.14944255,2632.1,2631.4,0.1538637]
[1769864449259,0.00374626,2632.3,2631.4,0.3441637]
[1769864449562,33.91215304,2632.1,2631.1,0.15526838]
[1769864449765,9.03448421,2632.0,2631.1,0.15526838]
[1769864449951,5.15448421,2631.9,2631.1,0.15526838]
[1769864450151,5.15448421,2631.8,2631.1,0.15526838]
[1769864450354,6.15774275,2632.0,2631.2,0.15526838]
[1769864450564,5.1554551,2631.9,2631.2,0.15526838]
[1769864450758,5.1554551,2631.8,2631.2,0.15526838]
[1769864450950,3.88,2632.0,2631.2,0.15526838]
[1769864452165,3.88,2632.0,2631.4,0.1422109]
[1769864454972,2.27774275,2632.2,2631.4,0.1422109]
[1769864458172,2.41609266,2632.2,2631.4,0.1422109]
[1769864458475,2.41609266,2632.0,2631.3,0.19031]
[1769864459168,2.27774275,2632.3,2631.4,0.1422109]
[1769864460375,2.27774275,2632.1,2631.4,0.1422109]
[1769864462285,0.13871177,2632.2,2631.4,0.1422109]
[1769864462286,2.41645452,2632.2,2631.4,0.1422109]
[1769864462976,5.15697402,2632.1,2631.4,0.1422109]
[1769864463173,5.15697402,2632.1,2631.3,0.19031]
[1769864463174,5.15697402,2632.0,2631.3,0.19031]
[1769864463477,5.15697402,2631.9,2631.3,0.19031]
[1769864463777,2.41861288,2632.1,2631.3,0.19031]
[1769864463965,5.15679275,2632.0,2631.3,0.3325209]
[1769864464168,7.4345355,2631.9,2630.9,0.16155219]
[1769864464363,5.15679275,2631.8,2630.9,0.16155219]
[1769864464570,5.15679275,2631.7,2630.9,0.16155219]
[1769864464777,2.27774275,2631.9,2630.9,0.16155219]
[1769864464971,5.15531715,2631.8,2630.9,0.16155219]
[1769864465271,5.15531715,2631.7,2630.9,0.16155219]
[1769864465467,2.27774275,2631.9,2630.9,0.16155219]
[1769864465666,5.15219217,2631.8,2630.9,0.16155219]
[1769864465867,5.15219217,2631.7,2630.9,0.16155219]
[1769864466066,2.27774275,2631.9,2630.9,0.16155219]
[1769864466369,5.15073946,2631.8,2630.9,0.16155219]
[1769864466569,5.15073946,2631.7,2630.9,0.16155219]
[1769864466776,2.27774275,2631.9,2630.9,0.16155219]
[1769864466977,5.14793844,2631.8,2630.9,0.16155219]
[1769864467175,5.14793844,2631.7,2630.9,0.16155219]
[1769864467474,2.27774275,2632.1,2630.9,0.16155219]
[1769864467680,5.14639364,2632.0,2630.9,0.16155219]
[1769864467876,5.14639364,2631.9,2630.9,0.16155219]
[1769864468075,5.14639364,2631.8,2630.9,0.16155219]
[1769864468275,2.27774275,2632.0,2630.9,0.16155219]
[1769864468478,5.14623257,2631.9,2630.9,0.16155219]
[1769864468676,5.14623257,2631.8,2630.9,0.16155219]
[1769864468878,2.27774275,2632.0,2630.9,0.16155219]
[1769864469083,5.14623604,2631.9,2630.9,0.16155219]
[1769864469380,5.14623604,2631.8,2630.9,0.16155219]
[1769864469568,2.27774275,2632.0,2630.9,0.16155219]
[1769864469872,2.27774275,2631.8,2630.9,0.00441067]
[1769864470174,5.14581195,2631.7,2630.9,0.16149681]
[1769864470376,2.27774275,2632.0,2630.9,0.16149681]
[1769864470576,5.14428393,2631.9,2630.9,0.16149681]
[1769864470772,2.27774275,2632.2,2630.9,0.16149681]
[1769864470973,5.14473994,2632.1,2630.9,0.16149681]
[1769864471169,5.14473994,2632.0,2630.9,0.16149681]
[1769864471474,2.28054586,2632.7,2631.4,0.15813261]
[1769864471781,5.14515308,2632.6,2631.4,0.15813261]
[1769864472081,0.00280311,2632.7,2631.6,0.15813261]
[1769864472281,0.00280311,2632.7,2631.8,0.15813261]
[1769864473580,5.14131632,2632.6,2631.8,0.15813261]
[1769864473779,0.00280311,2632.7,2631.8,0.15813261]
[1769864473980,5.14086299,2632.6,2631.8,0.15813261]
[1769864474181,0.00280311,2632.7,2631.8,0.15813261]
[1769864475085,33.90840678,2633.1,2631.8,0.15813261]
[1769864475086,0.98054586,2633.0,2631.8,0.15813261]
[1769864475377,5.11991784,2632.9,2631.8,0.15813261]
[1769864475580,5.11991784,2632.8,2631.8,0.15813261]
[1769864475780,33.90840678,2633.3,2631.8,0.15813261]
[1769864475994,5.12076388,2633.2,2631.8,0.15813261]
[1769864476284,5.12076388,2633.1,2631.8,0.15813261]
[1769864476582,5.12076388,2633.0,2631.8,0.15813261]
[1769864476880,5.12076388,2632.9,2631.8,0.15813261]
[1769864477069,0.002129,2632.9,2631.8,0.15813261]
[1769864479282,0.00311205,2632.7,2631.6,0.15557847]
[1769864479781,0.00311205,2632.5,2631.2,0.15557847]
[1769864479982,5.05121642,2632.4,2631.2,0.15557847]
[1769864480182,5.05121642,2632.3,2631.2,0.15557847]
[1769864480378,0.00311205,2632.3,2631.2,0.15557847]
[1769864480682,5.04910538,2632.2,2631.2,0.15557847]
[1769864480884,0.00311205,2632.3,2631.2,0.15557847]
[1769864483486,5.04863908,2632.2,2631.2,0.15557847]
[1769864483687,0.00311205,2632.3,2631.2,0.15557847]
[1769864483878,5.04863793,2632.2,2631.2,0.15557847]
[1769864484185,33.91820616,2632.6,2631.2,0.34588847]
[1769864484384,5.04881596,2632.5,2631.3,0.15397557]
[1769864484577,0.00979938,2632.6,2631.3,0.15397557]
[1769864484778,5.04915196,2632.5,2631.3,0.15397557]
[1769864484985,0.00979938,2632.6,2631.3,0.15397557]
[1769864485183,33.91993078,2632.9,2631.4,0.15397557]
[1769864485385,5.04911314,2632.8,2631.4,0.15397557]
[1769864485583,5.04911314,2632.7,2631.4,0.15397557]
[1769864485781,5.04745499,2632.6,2631.4,0.34427557]
[1769864485983,0.011524,2632.9,2631.5,0.15397557]
[1769864486184,5.04755283,2632.8,2631.5,0.15397557]
[1769864486483,5.04755283,2632.7,2631.5,0.15397557]
[1769864486677,5.04755283,2632.6,2631.5,0.15397557]
[1769864486878,0.011524,2632.9,2631.5,0.15397557]
[1769864487187,8.92740517,2632.8,2631.5,0.15397557]
[1769864487379,5.04740517,2632.7,2631.5,0.15397557]
[1769864487686,5.04740517,2632.6,2631.5,0.15397557]
[1769864487882,0.01169801,2632.7,2631.5,0.15397557]
[1769864488084,5.04726541,2632.6,2631.5,0.15397557]
[1769864488286,0.01169801,2632.7,2631.5,0.15397557]
[1769864488485,5.04713226,2632.6,2631.5,0.15397557]
[1769864488685,3.88,2632.8,2631.5,0.15397557]
[1769864488885,5.04759576,2632.7,2631.5,0.15397557]
[1769864489082,5.04759576,2632.6,2631.5,0.15397557]
[1769864489286,3.89085879,2632.8,2631.5,0.15397557]
[1769864489485,5.04757517,2632.7,2631.5,0.15397557]
[1769864489786,5.04757517,2632.6,2631.5,0.15397557]
[1769864489987,3.89085879,2632.8,2631.5,0.15397557]
[1769864490187,5.04777368,2632.7,2631.5,0.15397557]
[1769864490391,3.89085879,2632.8,2631.5,0.15397557]
[1769864490392,5.04777368,2632.6,2631.5,0.15397557]